fUSD/lending_fUSD_20250520
["ID","MTS","AMOUNT","RATE_DAILY","PERIOD"]
[361731455,1747735847519,-151.0,0.000249,7]
[361731456,1747735847529,-151.0,0.000249,7]
[361731457,1747735847540,-151.0,0.000249,7]
[361731458,1747735847550,-151.0,0.000249,7]
[361731459,1747735847561,-151.0,0.000249,7]
[361731460,1747735847571,-151.0,0.000249,7]
[361731461,1747735847581,-151.0,0.000249,7]
[361731462,1747735847591,-151.0,0.000249,7]
[361731463,1747735847601,-151.0,0.000249,7]
[361731464,1747735847611,-151.0,0.000249,7]
[361731465,1747735847621,-151.0,0.000249,7]
[361731466,1747735847632,-151.0,0.000249,7]
[361731467,1747735847641,-151.0,0.000249,7]
[361731468,1747735847652,-220.406003,0.000249,7]
[361731469,1747735847662,-151.0,0.000249,7]
[361731470,1747735847672,-151.0,0.000249,7]
[361731471,1747735847682,-151.0,0.000249,7]
[361731472,1747735847692,-151.0,0.000249,7]
[361731473,1747735847702,-151.0,0.000249,7]
[361731474,1747735847712,-151.0,0.000249,7]
[361731475,1747735847722,-151.0,0.000249,7]
[361731476,1747735847733,-151.0,0.000249,7]
[361731477,1747735847743,-151.0,0.000249,7]
[361731478,1747735847753,-151.0,0.000249,7]
[361731479,1747735847763,-151.0,0.000249,7]
[361731480,1747735847774,-151.0,0.000249,7]
[361731481,1747735847784,-2000.0,0.000249,2]
[361731482,1747735847797,-151.0,0.000249,7]
[361731483,1747735847806,-151.0,0.000249,7]
[361731484,1747735847816,-161.262017,0.000249,7]
[361731485,1747735847827,-161.262017,0.000249,7]
[361731486,1747735847836,-465710.77003,0.000249,3]
[361731487,1747735847846,-174.29073933,0.000249,2]
[361731488,1747735847856,-216.73753572,0.00025,3]
[361731489,1747735847866,-160.0,0.00025,3]
[361731490,1747735847877,-772.23230505,0.00025,7]
[361731491,1747735847888,-500.0,0.00025,2]
[361731492,1747735847897,-300.0,0.00025,2]
[361731493,1747735847908,-300.0,0.0002525,2]
[361731494,1747735847917,-209.0,0.0002529,2]
[361731495,1747735847928,-297.74756271,0.00025314,12]
[361731496,1747735847938,-150.0,0.00025379,2]
[361731497,1747735847947,-432.0,0.000255,2]
[361731498,1747735847958,-298.26089446,0.00025555,2]
[361731499,1747735847968,-257.05,0.0002583,30]
[361731500,1747735847977,-150.0,0.00025955,2]
[361731501,1747735847990,-2713.69,0.00026,7]
[361731502,1747735848000,-1348.6,0.00026046,2]
[361731503,1747735848010,-150.0,0.00026164,2]
[361731504,1747735848021,-209.0,0.0002624,2]
[361731505,1747735848033,-150.0,0.00026301,2]
[361731506,1747735848043,-297.74756271,0.00026348,14]
[361731507,1747735848054,-197.52387529,0.000264,2]
[361731508,1747735848064,-235.92473347,0.00026438,2]
[361731509,1747735848075,-150.0,0.00026532,2]
[361731510,1747735848085,-809.24,0.00026676,2]
[361731511,1747735848096,-6843.77863831,0.00026678,2]
[361731512,1747735848106,-500.0,0.00026807,2]
[361731513,1747735848117,-1031.25434197,0.00026824,2]
[361731514,1747735848127,-309.29654756,0.00026924,2]
[361731515,1747735848138,-550.0,0.00027,2]
[361731516,1747735848150,-150.0,0.00027,2]
[361731517,1747735848161,-163.86333729,0.00027,2]
[361731518,1747735848171,-202.0,0.00027071,18]
[361731519,1747735848181,-611.16,0.00027106,2]
[361731520,1747735848192,-150.0,0.00027109,2]
[361731521,1747735848202,-500.0,0.00027154,7]
[361731522,1747735848212,-209.0,0.0002719,2]
[361731523,1747735848222,-695.89154179,0.000272,5]
[361731524,1747735848232,-2625.52,0.000273,2]
[361731525,1747735848243,-3245.17,0.000273,2]
[361731526,1747735848253,-297.74756271,0.00027383,17]
[361731527,1747735848265,-371.15399071,0.00027397,2]
[361731528,1747735848275,-151.0,0.00027397,7]
[361731529,1747735848286,-151.0,0.00027397,7]
[361731530,1747735848297,-151.0,0.00027397,7]
[361731531,1747735848307,-192.34117645,0.00027397,7]
[361731532,1747735848317,-1531.47,0.00027397,2]
[361731533,1747735848327,-300.0,0.00027397,2]
[361731534,1747735848337,-300.0,0.00027397,80]
[361731535,1747735848347,-175.28,0.00027397,10]
[361731536,1747735848358,-412.17664057,0.000274,2]
[361731537,1747735848368,-1200.0,0.000274,2]
[361731538,1747735848378,-175.99459371,0.00027586,2]
[361731539,1747735848388,-150.0,0.00027686,2]
[361731540,1747735848398,-13007.99,0.000277,7]
[361731541,1747735848408,-2000.0,0.000277,2]
[361731542,1747735848418,-2713.69,0.000277,7]
[361731543,1747735848428,-209.0,0.0002814,30]
[361731544,1747735848438,-150.0,0.00028263,2]
[361731545,1747735848448,-320.74051982,0.00028293,2]
[361731546,1747735848458,-297.74756271,0.00028417,19]
[361731547,1747735848467,-3492.57699011,0.00028512,10]
[361731548,1747735848477,-500.0,0.00028767,30]
[361731549,1747735848487,-1531.47,0.00028767,2]
[361731550,1747735848498,-6843.77863831,0.00028789,2]
[361731551,1747735848508,-500.0,0.00028798,7]
[361731552,1747735848518,-150.0,0.00028839,2]
[361731553,1747735848528,-151.0,0.00028899,30]
[361731554,1747735848538,-151.0,0.00028899,30]
[361731555,1747735848548,-151.0,0.00028899,30]
[361731556,1747735848559,-151.0,0.00028899,30]
[361731557,1747735848569,-151.0,0.00028899,30]
[361731558,1747735848579,-151.0,0.00028899,30]
[361731559,1747735848589,-151.0,0.00028899,30]
[361731560,1747735848599,-151.0,0.00028899,30]
[361731561,1747735848610,-151.0,0.00028899,30]
[361731562,1747735848620,-151.0,0.00028899,30]
[361731563,1747735848631,-151.0,0.00028899,30]
[361731564,1747735848641,-151.0,0.00028899,30]
[361731565,1747735848651,-151.0,0.00028899,30]
[361731566,1747735848662,-151.0,0.00028899,30]
[361731567,1747735848672,-151.0,0.00028899,30]
[361731568,1747735848682,-151.0,0.00028899,30]
[361731569,1747735848693,-151.0,0.00028899,30]
[361731570,1747735848703,-151.0,0.00028899,30]
[361731571,1747735848713,-151.0,0.00028899,30]
[361731572,1747735848723,-161.18732624,0.00028899,30]
[361731573,1747735848734,-50552.03330056,0.00028899,5]
[361731574,1747735848745,-600.0,0.00029,2]
[361731575,1747735848755,-151.68,0.00029,2]
[361731576,1747735848765,-151.68,0.00029,2]
[361731577,1747735848776,-150.0,0.00029006,2]
[361731578,1747735848786,-150.0,0.00029006,2]
[361731579,1747735848796,-150.0,0.00029006,2]
[361731580,1747735848807,-300.41,0.00029006,2]
[361731581,1747735848818,-209.0,0.0002909,30]
[361731582,1747735848827,-590.15496349,0.00029315,30]
[361731583,1747735848837,-611.16,0.00029369,2]
[361731584,1747735848847,-150.0,0.00029416,2]
[361731585,1747735848858,-297.74756271,0.00029452,21]
[361731586,1747735848868,-500.0,0.00029613,2]
[361731587,1747735848879,-332.60791905,0.00029662,2]
[361731588,1747735848889,-13007.99,0.000298,7]
[361731589,1747735848899,-2713.69,0.000298,7]
[361731590,1747735848910,-150.0,0.00029993,2]
[361731591,1747735848920,-328.54,0.0003,120]
[361731592,1747735848931,-6015.86081829,0.0003,30]
[361731593,1747735848942,-3020.50151911,0.0003,3]
[361731594,1747735848953,-190.0,0.0003,14]
[361731595,1747735848963,-213.0,0.0003,2]
[361731596,1747735848974,-1000.0,0.0003,2]
[361731597,1747735848984,-609.004103,0.0003,2]
[361731598,1747735848998,-516.3,0.0003,120]
[361731599,1747735849009,-209.0,0.0003004,30]
[361731600,1747735849019,-20047.14347485,0.0003013,3]
[361731601,1747735849031,-1531.47,0.00030137,2]
[361731602,1747735849043,-150.0,0.00030137,5]
[361731603,1747735849054,-2000.0,0.000304,2]
[361731604,1747735849066,-453.17,0.0003043,2]
[361731605,1747735849078,-353.3,0.0003043,2]
[361731606,1747735849089,-353.3,0.0003043,2]
[361731607,1747735849100,-453.17,0.0003043,2]
[361731608,1747735849111,-453.17,0.0003043,2]
[361731609,1747735849122,-906.2,0.0003043,2]
[361731610,1747735849133,-353.3,0.0003043,2]
[361731611,1747735849144,-706.47,0.0003043,2]
[361731612,1747735849154,-906.34,0.0003043,2]
[361731613,1747735849164,-453.17,0.0003043,2]
[361731614,1747735849177,-299.92,0.0003043,2]
[361731615,1747735849187,-307.13,0.0003043,2]
[361731616,1747735849198,-162.78,0.0003043,2]
[361731617,1747735849209,-162.78,0.0003043,2]
[361731618,1747735849220,-500.0,0.00030442,7]
[361731619,1747735849230,-297.74756271,0.00030486,23]
[361731620,1747735849241,-150.0,0.0003057,2]
[361731621,1747735849251,-190.0,0.00030721,14]
[361731622,1747735849263,-300.0,0.00030822,80]
[361731623,1747735849274,-2010.8991,0.00030835,3]
[361731624,1747735849285,-6843.77863831,0.000309,2]
[361731625,1747735849295,-2000.0,0.000309,30]
[361731626,1747735849305,-151.0,0.00030979,7]
[361731627,1747735849316,-151.0,0.00030979,7]
[361731628,1747735849327,-262.811052,0.00030979,7]
[361731629,1747735849337,-151.0,0.00030979,7]
[361731630,1747735849347,-151.0,0.00030979,7]
[361731631,1747735849357,-8692.0420699,0.00030979,2]
[361731632,1747735849367,-1631.4525808,0.00030979,2]
[361731633,1747735849378,-1218.5236003,0.00030979,2]
[361731634,1747735849388,-150.0,0.0003099,7]
[361731635,1747735849399,-150.0,0.0003099,7]
[361731636,1747735849409,-150.0,0.0003099,7]
[361731637,1747735849418,-150.0,0.0003099,7]
[361731638,1747735849429,-150.0,0.0003099,7]
[361731639,1747735849439,-150.0,0.0003099,7]
[361731640,1747735849449,-150.0,0.0003099,7]
[361731641,1747735849459,-150.0,0.0003099,7]
[361731642,1747735849469,-150.0,0.0003099,7]
[361731643,1747735849479,-150.0,0.0003099,7]
[361731644,1747735849489,-209.0,0.0003099,30]
[361731645,1747735849500,-1039549.00483784,0.00031,120]
[361731646,1747735849511,-53894.56438369,0.00031,30]
[361731647,1747735849521,-150.0,0.00031,30]
[361731648,1747735849532,-150.0,0.00031,2]
[361731649,1747735849542,-900.0,0.00031,32]
[361731650,1747735849552,-151.0,0.00031,7]
[361731651,1747735849563,-151.0,0.00031,7]
[361731652,1747735849574,-151.0,0.00031,7]
[361731653,1747735849584,-151.0,0.00031,7]
[361731654,1747735849594,-156.823467,0.00031,7]
[361731655,1747735849603,-151.0,0.00031,7]
[361731656,1747735849614,-151.0,0.00031,7]
[361731657,1747735849624,-151.0,0.00031,7]
[361731658,1747735849635,-153.423828,0.00031,7]
[361731659,1747735849645,-151.0,0.00031,7]
[361731660,1747735849655,-281.471117,0.00031,7]
[361731661,1747735849665,-650.0,0.00031,2]
[361731662,1747735849675,-151.0,0.00031,7]
[361731663,1747735849685,-151.0,0.00031,7]
[361731664,1747735849695,-151.0,0.00031,7]
[361731665,1747735849705,-151.0,0.00031,7]
[361731666,1747735849715,-151.0,0.00031,7]
[361731667,1747735849726,-151.0,0.00031,7]
[361731668,1747735849736,-151.0,0.00031,7]
[361731669,1747735849746,-151.0,0.00031,7]
[361731670,1747735849755,-151.0,0.00031,7]
[361731671,1747735849765,-151.0,0.00031,7]
[361731672,1747735849775,-154.209641,0.00031,7]
[361731673,1747735849786,-151.0,0.00031,7]
[361731674,1747735849796,-151.0,0.00031,7]
[361731675,1747735849806,-151.0,0.00031,7]
[361731676,1747735849816,-151.0,0.00031,7]
[361731677,1747735849825,-151.0,0.00031,7]
[361731678,1747735849835,-152.874725,0.00031,7]
[361731679,1747735849846,-151.0,0.00031,7]
[361731680,1747735849855,-161.262017,0.00031,7]
[361731681,1747735849865,-572.973164,0.00031,7]
[361731682,1747735849875,-161.262017,0.00031,7]
[361731683,1747735849886,-572.973164,0.00031,7]
[361731684,1747735849896,-151.0,0.00031,7]
[361731685,1747735849905,-194.639679,0.00031,7]
[361731686,1747735849915,-194.639679,0.00031,7]
[361731687,1747735849926,-151.0,0.00031,7]
[361731688,1747735849936,-208.465648,0.00031,7]
[361731689,1747735849946,-187.966777,0.00031,7]
[361731690,1747735849956,-217.568218,0.00031,7]
[361731691,1747735849966,-187.966777,0.00031,7]
[361731692,1747735849976,-217.568218,0.00031,7]
[361731693,1747735849986,-151.0,0.00031,7]
[361731694,1747735849999,-151.0,0.00031,7]
[361731695,1747735850009,-151.0,0.00031,7]
[361731696,1747735850019,-151.0,0.00031,7]
[361731697,1747735850029,-151.0,0.00031,7]
[361731698,1747735850039,-151.0,0.00031,7]
[361731699,1747735850048,-6793.239825,0.00031,7]
[361731700,1747735850058,-151.0,0.00031,7]
[361731701,1747735850068,-409.962276,0.00031,7]
[361731702,1747735850079,-151.0,0.00031,7]
[361731703,1747735850090,-151.588191,0.00031,7]
[361731704,1747735850100,-409.962276,0.00031,7]
[361731705,1747735850110,-151.0,0.00031,7]
[361731706,1747735850120,-633.074428,0.00031,7]
[361731707,1747735850129,-633.074428,0.00031,7]
[361731708,1747735850140,-151.0,0.00031,7]
[361731709,1747735850149,-151.995104,0.00031,7]
[361731710,1747735850159,-152.759917,0.00031,7]
[361731711,1747735850169,-151.0,0.00031,7]
[361731712,1747735850179,-151.0,0.00031,7]
[361731713,1747735850188,-151.0,0.00031,7]
[361731714,1747735850198,-151.0,0.00031,7]
[361731715,1747735850208,-229.097503,0.00031,7]
[361731716,1747735850217,-229.097503,0.00031,7]
[361731717,1747735850227,-151.0,0.00031,7]
[361731718,1747735850236,-151.0,0.00031,7]
[361731719,1747735850245,-438.990697,0.00031,7]
[361731720,1747735850255,-438.990697,0.00031,7]
[361731721,1747735850264,-186.460996,0.00031,7]
[361731722,1747735850273,-186.460996,0.00031,7]
[361731723,1747735850283,-742.02569194,0.00031,2]
[361731724,1747735850293,-151.0,0.00031,7]
[361731725,1747735850302,-151.0,0.00031,7]
[361731726,1747735850311,-151.0,0.00031,7]
[361731727,1747735850320,-152.1388,0.00031,7]
[361731728,1747735850330,-153.186968,0.00031,7]
[361731729,1747735850339,-454.721421,0.00031,7]
[361731730,1747735850349,-454.721421,0.00031,7]
[361731731,1747735850359,-152.117615,0.00031,7]
[361731732,1747735850369,-151.0,0.00031,7]
[361731733,1747735850379,-503.968045,0.00031,7]
[361731734,1747735850388,-503.968045,0.00031,7]
[361731735,1747735850399,-1000.0,0.00031,2]
[361731736,1747735850408,-151.0,0.00031,7]
[361731737,1747735850418,-151.0,0.00031,7]
[361731738,1747735850427,-151.0,0.00031,7]
[361731739,1747735850437,-4440.011387,0.00031,7]
[361731740,1747735850447,-4440.011387,0.00031,7]
[361731741,1747735850457,-151.0,0.00031,7]
[361731742,1747735850467,-151.0,0.00031,7]
[361731743,1747735850476,-151.0,0.00031,7]
[361731744,1747735850486,-434.834512,0.00031,7]
[361731745,1747735850496,-434.834512,0.00031,7]
[361731746,1747735850506,-151.0,0.00031,7]
[361731747,1747735850517,-151.0,0.00031,7]
[361731748,1747735850527,-190.511498,0.00031,7]
[361731749,1747735850536,-190.511498,0.00031,7]
[361731750,1747735850545,-344.91441206,0.00031031,2]
[361731751,1747735850555,-500.0,0.00031131,7]
[361731752,1747735850565,-150.0,0.00031147,2]
[361731753,1747735850576,-2000.0,0.00031233,120]
[361731754,1747735850586,-197.52387529,0.00031233,2]
[361731755,1747735850595,-500.0,0.00031247,7]
[361731756,1747735850604,-150.0,0.00031255,7]
[361731757,1747735850614,-1600.0,0.00031297,7]
[361731758,1747735850624,-2713.69,0.000313,7]
[361731759,1747735850634,-150.0,0.00031341,7]
[361731760,1747735850644,-500.0,0.00031342,7]
[361731761,1747735850654,-1600.0,0.00031443,7]
[361731762,1747735850665,-1531.47,0.00031507,2]
[361731763,1747735850677,-2000.0,0.00031507,120]
[361731764,1747735850688,-500.0,0.0003151,7]
[361731765,1747735850698,-150.0,0.00031521,7]
[361731766,1747735850708,-297.74756271,0.00031521,25]
[361731767,1747735850718,-600.0,0.00031548,7]
[361731768,1747735850727,-500.0,0.00031564,2]
[361731769,1747735850737,-150.0,0.00031618,7]
[361731770,1747735850747,-611.16,0.00031633,2]
[361731771,1747735851181,-150.0,0.00031692,7]
[361731772,1747735851198,-600.0,0.00031693,7]
[361731773,1747735851208,-1600.0,0.00031716,7]
[361731774,1747735851218,-150.0,0.00031723,2]
[361731775,1747735851229,-500.0,0.00031752,7]
[361731776,1747735851239,-2000.0,0.00031781,120]
[361731777,1747735851249,-150.0,0.00031786,7]
[361731778,1747735851259,-600.0,0.000318,13]
[361731779,1747735851269,-150.0,0.00031843,7]
[361731780,1747735851279,-1600.0,0.00031843,7]
[361731781,1747735851289,-1600.0,0.00031851,7]
[361731782,1747735851299,-500.0,0.00031857,7]
[361731783,1747735851308,-10000.0,0.0003188,120]
[361731784,1747735851318,-151.0,0.0003188,7]
[361731785,1747735851329,-151.0,0.0003188,7]
[361731786,1747735851339,-500.0,0.00031949,2]
[361731787,1747735851349,-190.0,0.00031969,14]
[361731788,1747735851359,-296.0,0.00032,120]
[361731789,1747735851368,-1535.20694556,0.00032,2]
[361731790,1747735851378,-150.0,0.00032,2]
[361731791,1747735851388,-900.0,0.00032,33]
[361731792,1747735851398,-163.86333729,0.00032033,15]
[361731793,1747735851408,-150.0,0.00032043,7]
[361731794,1747735851418,-150.0,0.00032051,7]
[361731795,1747735851427,-2000.0,0.00032055,120]
[361731796,1747735851437,-500.0,0.00032086,7]
[361731797,1747735851447,-150.0,0.00032184,7]
[361731798,1747735851457,-6361.36616775,0.000322,30]
[361731799,1747735851466,-500.0,0.00032206,7]
[361731800,1747735851476,-600.0,0.00032218,7]
[361731801,1747735851486,-150.0,0.00032247,7]
[361731802,1747735851496,-150.0,0.000323,2]
[361731803,1747735851506,-150.0,0.00032317,7]
[361731804,1747735851515,-2000.0,0.00032329,120]
[361731805,1747735851526,-500.0,0.00032337,7]
[361731806,1747735851535,-1600.0,0.00032345,7]
[361731807,1747735851545,-150.0,0.00032395,7]
[361731808,1747735851555,-500.0,0.00032396,7]
[361731809,1747735851565,-357.6762453,0.000324,2]
[361731810,1747735851575,-500.0,0.00032404,7]
[361731811,1747735851585,-528.13307809,0.0003242,2]
[361731812,1747735851595,-500.0,0.00032461,7]
[361731813,1747735851604,-150.0,0.00032482,7]
[361731814,1747735851615,-151.0,0.000325,7]
[361731815,1747735851625,-158.844733,0.000325,7]
[361731816,1747735851635,-151.0,0.000325,7]
[361731817,1747735851645,-152.160173,0.000325,7]
[361731818,1747735851655,-151.0,0.000325,7]
[361731819,1747735851664,-151.0,0.000325,7]
[361731820,1747735851674,-151.0,0.000325,7]
[361731821,1747735851684,-274.282751,0.000325,7]
[361731822,1747735851694,-257.339799,0.000325,7]
[361731823,1747735851704,-151.0,0.000325,7]
[361731824,1747735851714,-151.0,0.000325,7]
[361731825,1747735851723,-592.678704,0.000325,7]
[361731826,1747735851733,-151.0,0.000325,7]
[361731827,1747735851743,-210.212513,0.000325,7]
[361731828,1747735851753,-151.0,0.000325,7]
[361731829,1747735851763,-164.027039,0.000325,7]
[361731830,1747735851772,-151.0,0.000325,7]
[361731831,1747735851783,-161.262017,0.000325,7]
[361731832,1747735851793,-161.262017,0.000325,7]
[361731833,1747735851803,-51439.814,0.000325,120]
[361731834,1747735851813,-51439.815,0.000325,120]
[361731835,1747735851823,-51439.814,0.000325,120]
[361731836,1747735851834,-51439.814,0.000325,120]
[361731837,1747735851843,-51439.814,0.000325,120]
[361731838,1747735851853,-500.0,0.00032505,7]
[361731839,1747735851863,-297.74756271,0.00032555,27]
[361731840,1747735851873,-150.0,0.00032582,7]
[361731841,1747735851883,-2713.69,0.000326,7]
[361731842,1747735851893,-200.02975988,0.00032603,2]
[361731843,1747735851903,-2000.0,0.00032603,120]
[361731844,1747735851912,-151.0,0.00032603,7]
[361731845,1747735851922,-151.0,0.00032603,7]
[361731846,1747735851932,-151.0,0.00032603,7]
[361731847,1747735851943,-600.0,0.00032685,7]
[361731848,1747735851952,-150.0,0.00032696,7]
[361731849,1747735851963,-500.0,0.00032699,7]
[361731850,1747735851973,-500.0,0.00032713,7]
[361731851,1747735851982,-150.0,0.00032746,7]
[361731852,1747735851994,-8634.5966306,0.00032756,2]
[361731853,1747735852004,-455.31,0.00032761,2]
[361731854,1747735852014,-894.44,0.00032761,2]
[361731855,1747735852025,-1600.0,0.00032786,7]
[361731856,1747735852035,-500.0,0.00032786,7]
[361731857,1747735852045,-4665.37162604,0.000328,2]
[361731858,1747735852054,-150.0,0.00032847,7]
[361731859,1747735852063,-916.0,0.00032862,2]
[361731860,1747735852072,-500.0,0.00032874,7]
[361731861,1747735852081,-150.0,0.00032875,7]
[361731862,1747735852090,-1531.47,0.00032877,2]
[361731863,1747735852099,-332.35,0.00032877,2]
[361731864,1747735852109,-150.0,0.00032877,2]
[361731865,1747735852118,-320.0,0.00032877,12]
[361731866,1747735852128,-320.0,0.00032877,12]
[361731867,1747735852138,-390.0,0.00032877,12]
[361731868,1747735852147,-2000.0,0.00032877,120]
[361731869,1747735852156,-500.0,0.00032877,2]
[361731870,1747735852166,-15000.0,0.0003288,120]
[361731871,1747735852177,-1012.0,0.000329,2]
[361731872,1747735852186,-500.0,0.00032904,2]
[361731873,1747735852197,-500.0,0.00032908,7]
[361731874,1747735852206,-500.0,0.00032932,2]
[361731875,1747735852215,-500.0,0.00032959,2]
[361731876,1747735852223,-500.0,0.00032966,7]
[361731877,1747735852231,-500.0,0.00032987,2]
[361731878,1747735852238,-160.0,0.00033,2]
[361731879,1747735852245,-160.0,0.00033,2]
[361731880,1747735852252,-160.0,0.00033,2]
[361731881,1747735852259,-160.0,0.00033,2]
[361731882,1747735852267,-160.0,0.00033,2]
[361731883,1747735852274,-160.0,0.00033,2]
[361731884,1747735852282,-160.0,0.00033,2]
[361731885,1747735852289,-160.0,0.00033,2]
[361731886,1747735852296,-160.0,0.00033,2]
[361731887,1747735852303,-160.0,0.00033,2]
[361731888,1747735852311,-160.0,0.00033,2]
[361731889,1747735852319,-25177.70518463,0.00033,2]
[361731890,1747735852326,-900.0,0.00033,34]
[361731891,1747735852334,-4568.86652593,0.00033,2]
[361731892,1747735852340,-1142.16039095,0.00033,120]
[361731893,1747735852347,-153.22005,0.00033,7]
[361731894,1747735852356,-700.0,0.00033,2]
[361731895,1747735852366,-526.235521,0.00033,14]
[361731896,1747735852375,-213.0,0.00033,2]
[361731897,1747735852386,-500.0,0.00033014,2]
[361731898,1747735852397,-500.0,0.00033041,2]
[361731899,1747735852406,-500.0,0.00033069,2]
[361731900,1747735852417,-500.0,0.00033096,2]
[361731901,1747735852427,-150.0,0.00033097,7]
[361731902,1747735852437,-217.04082104,0.000331,2]
[361731903,1747735852447,-150.0,0.00033112,7]
[361731904,1747735852456,-500.0,0.00033124,2]
[361731905,1747735852466,-200.0,0.00033151,2]
[361731906,1747735852476,-500.0,0.00033151,2]
[361731907,1747735852485,-809.24,0.00033165,2]
[361731908,1747735852495,-500.0,0.00033178,2]
[361731909,1747735852506,-2000.0,0.000332,2]
[361731910,1747735852515,-1600.0,0.00033201,7]
[361731911,1747735852525,-500.0,0.00033206,2]
[361731912,1747735852535,-500.0,0.00033233,2]
[361731913,1747735852544,-500.0,0.00033261,2]
[361731914,1747735852554,-509.37777343,0.00033279,7]
[361731915,1747735852564,-500.0,0.00033288,2]
[361731916,1747735852574,-500.0,0.00033315,2]
[361731917,1747735852584,-500.0,0.00033333,7]
[361731918,1747735852594,-269.69966717,0.00033343,2]
[361731919,1747735852604,-150.0,0.00033378,7]
[361731920,1747735852614,-150.0,0.00033378,7]
[361731921,1747735852623,-1600.0,0.00033388,7]
[361731922,1747735852633,-1600.0,0.00033393,7]
[361731923,1747735852643,-150.0,0.00033448,7]
[361731924,1747735852653,-1600.0,0.00033464,7]
[361731925,1747735852663,-1171.63395016,0.000335,2]
[361731926,1747735852673,-544.99,0.000335,31]
[361731927,1747735852682,-544.99,0.000335,31]
[361731928,1747735852692,-544.99,0.000335,31]
[361731929,1747735852702,-544.99,0.000335,31]
[361731930,1747735852712,-544.99,0.000335,31]
[361731931,1747735852722,-544.99,0.000335,31]
[361731932,1747735852732,-544.99,0.000335,31]
[361731933,1747735852742,-544.99,0.000335,31]
[361731934,1747735852752,-544.99,0.000335,31]
[361731935,1747735852762,-544.99,0.000335,31]
[361731936,1747735852771,-544.99,0.000335,31]
[361731937,1747735852782,-544.99,0.000335,31]
[361731938,1747735852791,-150.0,0.00033503,7]
[361731939,1747735852801,-500.0,0.00033508,7]
[361731940,1747735852811,-1600.0,0.00033517,7]
[361731941,1747735852820,-150.0,0.00033548,7]
[361731942,1747735852830,-600.0,0.00033558,7]
[361731943,1747735852840,-197.0,0.00033568,30]
[361731944,1747735852849,-500.0,0.00033568,7]
[361731945,1747735852859,-297.74756271,0.0003359,29]
[361731946,1747735852870,-150.0,0.00033643,7]
[361731947,1747735852880,-202.0,0.00033657,26]
[361731948,1747735852889,-500.0,0.00033685,7]
[361731949,1747735852899,-1600.0,0.00033707,7]
[361731950,1747735852909,-458.16,0.0003372,2]
[361731951,1747735852919,-805.3,0.0003372,2]
[361731952,1747735852929,-805.3,0.0003372,2]
[361731953,1747735852939,-804.82,0.0003372,2]
[361731954,1747735852949,-597.43951499,0.0003373,60]